[Event "*** Titled Tuesday Blitz"]
[Site "Chess.com"]
[Date "2020.05.19"]
[Round "3"]
[White "Gajuchess"]
[Black "plumalka"]
[Result "1-0"]
[WhiteElo "2733"]
[BlackElo "2485"]
[TimeControl "180+1"]
[EndTime "12:28:11 PDT"]
[Termination "Gajuchess won by resignation"]

1. Nf3 {[%clk 0:03:00.9]} 1... c5 {[%clk 0:02:59.8]} 2. g3 {[%clk 0:03:01.5]}
2... Nc6 {[%clk 0:02:59.5]} 3. c4 {[%clk 0:03:01.9]} 3... e5 {[%clk 0:02:57.2]}
4. Bg2 {[%clk 0:03:00.1]} 4... g6 {[%clk 0:02:57.5]} 5. O-O {[%clk 0:03:00.2]}
5... Bg7 {[%clk 0:02:58]} 6. Nc3 {[%clk 0:03:00.4]} 6... Nge7 {[%clk 0:02:58]}
7. a3 {[%clk 0:03:00.1]} 7... O-O {[%clk 0:02:55.9]} 8. Rb1 {[%clk 0:03:00.7]}
8... a5 {[%clk 0:02:53.8]} 9. Ne1 {[%clk 0:02:59.6]} 9... d6 {[%clk 0:02:46.8]}
10. Nc2 {[%clk 0:02:59.9]} 10... Be6 {[%clk 0:02:46.9]} 11. Ne3 {[%clk
0:02:59.9]} 11... f5 {[%clk 0:02:43.7]} 12. d3 {[%clk 0:02:59.5]} 12... Rb8
{[%clk 0:02:30.9]} 13. Bd2 {[%clk 0:02:55.9]} 13... Nd4 {[%clk 0:02:28.4]} 14.
Ned5 {[%clk 0:02:54.8]} 14... Nxd5 {[%clk 0:02:02.2]} 15. cxd5 {[%clk
0:02:33.8]} 15... Bd7 {[%clk 0:02:01]} 16. b4 {[%clk 0:02:34.4]} 16... axb4
{[%clk 0:01:50.5]} 17. axb4 {[%clk 0:02:35.3]} 17... b6 {[%clk 0:01:44.1]} 18.
b5 {[%clk 0:02:21.1]} 18... Qe8 {[%clk 0:01:34.9]} 19. Qa4 {[%clk 0:02:20.9]}
19... Ra8 {[%clk 0:01:33.7]} 20. Qc4 {[%clk 0:02:20]} 20... Nc2 {[%clk
0:01:20.7]} 21. Rb2 {[%clk 0:01:34.3]} 21... Na3 {[%clk 0:01:19.7]} 22. Qb3
{[%clk 0:01:34.6]} 22... e4 {[%clk 0:01:00.8]} 23. Ra1 {[%clk 0:01:25.5]} 23...
Bxc3 {[%clk 0:00:41.5]} 24. Bxc3 {[%clk 0:01:20.2]} 24... Nxb5 {[%clk
0:00:41.7]} 25. Rxa8 {[%clk 0:01:19.7]} 25... Qxa8 {[%clk 0:00:42.6]} 26. Ra2
{[%clk 0:01:18.4]} 26... Qe8 {[%clk 0:00:41.5]} 27. Ba1 {[%clk 0:01:17.9]} 27...
exd3 {[%clk 0:00:40.5]} 28. Qxd3 {[%clk 0:01:15.1]} 28... Qe7 {[%clk 0:00:36.1]}
29. e3 {[%clk 0:01:11.7]} 29... Re8 {[%clk 0:00:35.8]} 30. Qd2 {[%clk
0:01:05.8]} 30... Rc8 {[%clk 0:00:35.5]} 31. Qb2 {[%clk 0:00:54.9]} 31... Qe5
{[%clk 0:00:23.2]} 32. Qc2 {[%clk 0:00:55]} 32... Qe7 {[%clk 0:00:22.4]} 33. Bf1
{[%clk 0:00:55.6]} 33... Nc7 {[%clk 0:00:20.3]} 34. Qb2 {[%clk 0:00:52.5]} 34...
Qe5 {[%clk 0:00:20.1]} 35. Qxb6 {[%clk 0:00:52.3]} 35... Nxd5 {[%clk 0:00:19]}
36. Bc4 {[%clk 0:00:49.6]} 36... Qe6 {[%clk 0:00:16.7]} 37. Qb2 {[%clk 0:00:46]}
1-0

[Event "*** Titled Tuesday Blitz"]
[Site "Chess.com"]
[Date "2020.05.19"]
[Round "3"]
[White "GMBenjaminFinegold"]
[Black "joksijoksi"]
[Result "1-0"]
[WhiteElo "2535"]
[BlackElo "2311"]
[TimeControl "180+1"]
[EndTime "12:28:12 PDT"]
[Termination "GMBenjaminFinegold won on time"]

1. d4 {[%clk 0:03:00.9]} 1... e6 {[%clk 0:03:00]} 2. e4 {[%clk 0:02:59.4]} 2...
d5 {[%clk 0:03:00.2]} 3. e5 {[%clk 0:02:59.3]} 3... c5 {[%clk 0:03:00]} 4. c3
{[%clk 0:02:58.9]} 4... Nc6 {[%clk 0:03:00.3]} 5. Nf3 {[%clk 0:02:58.2]} 5...
Bd7 {[%clk 0:03:00.6]} 6. Bd3 {[%clk 0:02:57.7]} 6... Rc8 {[%clk 0:03:00.2]} 7.
dxc5 {[%clk 0:02:56.1]} 7... Bxc5 {[%clk 0:02:56.5]} 8. O-O {[%clk 0:02:56.6]}
8... Nge7 {[%clk 0:02:55]} 9. b4 {[%clk 0:02:53.2]} 9... Bb6 {[%clk 0:02:53.3]}
10. Nbd2 {[%clk 0:02:50.9]} 10... Ng6 {[%clk 0:02:52.6]} 11. Re1 {[%clk
0:02:50.4]} 11... Qc7 {[%clk 0:02:49.2]} 12. Nb3 {[%clk 0:02:35.1]} 12... O-O
{[%clk 0:02:36.4]} 13. Qe2 {[%clk 0:02:29.9]} 13... Nce7 {[%clk 0:02:11.7]} 14.
Bb2 {[%clk 0:02:21.7]} 14... a6 {[%clk 0:01:47.6]} 15. Rad1 {[%clk 0:02:11.4]}
15... Ba4 {[%clk 0:01:37.7]} 16. Bb1 {[%clk 0:02:09.2]} 16... Nc6 {[%clk
0:01:20.6]} 17. h4 {[%clk 0:02:00]} 17... Bxb3 {[%clk 0:01:18.8]} 18. axb3
{[%clk 0:01:59.4]} 18... Rce8 {[%clk 0:00:53]} 19. Ng5 {[%clk 0:01:58.3]} 19...
Ncxe5 {[%clk 0:00:45.7]} 20. c4 {[%clk 0:01:51.7]} 20... f6 {[%clk 0:00:39.2]}
21. Nxh7 {[%clk 0:01:51.5]} 21... Kxh7 {[%clk 0:00:34]} 22. Qh5+ {[%clk
0:01:51.5]} 22... Kg8 {[%clk 0:00:34.2]} 23. Rxe5 {[%clk 0:01:50.8]} 23... Bxf2+
{[%clk 0:00:23.1]} 24. Kh1 {[%clk 0:01:49.6]} 24... fxe5 {[%clk 0:00:21.5]} 25.
Bxg6 {[%clk 0:01:49.1]} 25... Rf4 {[%clk 0:00:16.5]} 26. g4 {[%clk 0:01:13.4]}
26... d4 {[%clk 0:00:07.8]} 27. b5 {[%clk 0:00:53.2]} 27... Qc5 {[%clk
0:00:06.3]} 28. Ra1 {[%clk 0:00:37.7]} 28... axb5 {[%clk 0:00:02.6]} 29. Qh7+
{[%clk 0:00:36.9]} 29... Kf8 {[%clk 0:00:02.5]} 30. Qh8+ {[%clk 0:00:37.3]}
30... Ke7 {[%clk 0:00:02.9]} 31. Qxe8+ {[%clk 0:00:36.5]} 1-0

[Event "*** Titled Tuesday Blitz"]
[Site "Chess.com"]
[Date "2020.05.19"]
[Round "3"]
[White "scabies1"]
[Black "Margarita2907"]
[Result "0-1"]
[WhiteElo "2279"]
[BlackElo "2034"]
[TimeControl "180+1"]
[EndTime "12:28:12 PDT"]
[Termination "Margarita2907 won by checkmate"]

1. e4 {[%clk 0:03:00.9]} 1... c5 {[%clk 0:02:59.8]} 2. Nf3 {[%clk 0:02:59]} 2...
d6 {[%clk 0:02:58.9]} 3. d4 {[%clk 0:02:58.3]} 3... cxd4 {[%clk 0:02:58.4]} 4.
Nxd4 {[%clk 0:02:59.2]} 4... Nf6 {[%clk 0:02:57.9]} 5. Nc3 {[%clk 0:02:59.7]}
5... a6 {[%clk 0:02:58.2]} 6. Bg5 {[%clk 0:02:59.3]} 6... Nbd7 {[%clk
0:02:57.4]} 7. f4 {[%clk 0:02:59.2]} 7... Qc7 {[%clk 0:02:57.7]} 8. Qf3 {[%clk
0:02:59.3]} 8... h6 {[%clk 0:02:57]} 9. Bxf6 {[%clk 0:02:53]} 9... Nxf6 {[%clk
0:02:56.2]} 10. f5 {[%clk 0:02:53.3]} 10... Qc5 {[%clk 0:02:54.4]} 11. O-O-O
{[%clk 0:02:51.4]} 11... g5 {[%clk 0:02:40.3]} 12. h4 {[%clk 0:02:36.8]} 12...
g4 {[%clk 0:02:38.7]} 13. Qe2 {[%clk 0:02:25.3]} 13... h5 {[%clk 0:02:39]} 14.
Kb1 {[%clk 0:02:18.1]} 14... b5 {[%clk 0:02:37.1]} 15. e5 {[%clk 0:01:51.6]}
15... dxe5 {[%clk 0:02:32.9]} 16. Nb3 {[%clk 0:01:44.6]} 16... Qc7 {[%clk
0:02:30.6]} 17. g3 {[%clk 0:01:35.7]} 17... Bxf5 {[%clk 0:02:29.3]} 18. Bg2
{[%clk 0:01:32.7]} 18... Rc8 {[%clk 0:02:26.1]} 19. a3 {[%clk 0:01:31.5]} 19...
Bh6 {[%clk 0:02:22.6]} 20. Rhf1 {[%clk 0:01:24.4]} 20... Be6 {[%clk 0:02:17.5]}
21. Rfe1 {[%clk 0:00:46]} 21... Kf8 {[%clk 0:01:41.8]} 22. Qxe5 {[%clk
0:00:44.5]} 22... Qxe5 {[%clk 0:01:39.6]} 23. Rxe5 {[%clk 0:00:45.4]} 23... Kg7
{[%clk 0:01:39.4]} 24. Bb7 {[%clk 0:00:45.3]} 24... Rcd8 {[%clk 0:01:34.3]} 25.
Rxd8 {[%clk 0:00:40.2]} 25... Rxd8 {[%clk 0:01:31.4]} 26. Bxa6 {[%clk
0:00:40.5]} 26... Kg6 {[%clk 0:00:49]} 27. Bxb5 {[%clk 0:00:38.4]} 27... Nd5
{[%clk 0:00:47.1]} 28. Nxd5 {[%clk 0:00:29.1]} 28... Rxd5 {[%clk 0:00:45.5]} 29.
Bd3+ {[%clk 0:00:21.4]} 29... Kf6 {[%clk 0:00:42.5]} 30. Re2 {[%clk 0:00:14.8]}
30... Re5 {[%clk 0:00:40.6]} 31. Rf2+ {[%clk 0:00:14.1]} 31... Kg7 {[%clk
0:00:39.9]} 32. Nd4 {[%clk 0:00:13.9]} 32... Re1# {[%clk 0:00:37.2]} 0-1

[Event "*** Titled Tuesday Blitz"]
[Site "Chess.com"]
[Date "2020.05.19"]
[Round "3"]
[White "MarcoRiehle"]
[Black "joppie2"]
[Result "1-0"]
[WhiteElo "2646"]
[BlackElo "2895"]
[TimeControl "180+1"]
[EndTime "12:28:13 PDT"]
[Termination "MarcoRiehle won by resignation"]

1. e4 {[%clk 0:03:00.3]} 1... c6 {[%clk 0:02:58.7]} 2. c4 {[%clk 0:02:59.6]}
2... d5 {[%clk 0:02:59.6]} 3. cxd5 {[%clk 0:03:00.5]} 3... cxd5 {[%clk
0:03:00.2]} 4. exd5 {[%clk 0:03:00.8]} 4... Nf6 {[%clk 0:03:00.8]} 5. Nc3 {[%clk
0:03:01.1]} 5... Nxd5 {[%clk 0:03:00.6]} 6. Nf3 {[%clk 0:03:00.7]} 6... Nc6
{[%clk 0:03:01]} 7. Bb5 {[%clk 0:03:00.1]} 7... g6 {[%clk 0:02:57.7]} 8. Qa4
{[%clk 0:02:58.4]} 8... Nb6 {[%clk 0:02:54.2]} 9. Bxc6+ {[%clk 0:02:58.2]} 9...
bxc6 {[%clk 0:02:55.1]} 10. Qxc6+ {[%clk 0:02:59.1]} 10... Bd7 {[%clk
0:02:55.4]} 11. Qe4 {[%clk 0:02:58.9]} 11... Bg7 {[%clk 0:02:54.9]} 12. d4
{[%clk 0:02:58.7]} 12... Rc8 {[%clk 0:02:51.9]} 13. O-O {[%clk 0:02:58.1]} 13...
Bc6 {[%clk 0:02:51.9]} 14. Qe2 {[%clk 0:02:52.2]} 14... O-O {[%clk 0:02:50.4]}
15. Rd1 {[%clk 0:02:49.5]} 15... Nd5 {[%clk 0:02:48.7]} 16. Bg5 {[%clk
0:02:42.7]} 16... h6 {[%clk 0:02:48.2]} 17. Bh4 {[%clk 0:02:41.7]} 17... Re8
{[%clk 0:02:47.6]} 18. Rac1 {[%clk 0:02:38.3]} 18... Ba8 {[%clk 0:02:42]} 19.
Bg3 {[%clk 0:02:33.6]} 19... Qa5 {[%clk 0:02:36.9]} 20. Nxd5 {[%clk 0:02:12.7]}
20... Bxd5 {[%clk 0:02:32]} 21. a3 {[%clk 0:02:11]} 21... e6 {[%clk 0:02:26.8]}
22. Be5 {[%clk 0:02:07.8]} 22... Bxf3 {[%clk 0:02:17]} 23. gxf3 {[%clk
0:02:03.5]} 23... Qb6 {[%clk 0:02:13.3]} 24. Bxg7 {[%clk 0:01:46.7]} 24... Kxg7
{[%clk 0:02:13]} 25. Rxc8 {[%clk 0:01:43]} 25... Rxc8 {[%clk 0:02:12.3]} 26. d5
{[%clk 0:01:43.4]} 26... exd5 {[%clk 0:02:10.5]} 27. Rxd5 {[%clk 0:01:41.1]}
27... Rc6 {[%clk 0:02:04]} 28. Kg2 {[%clk 0:01:37.2]} 28... h5 {[%clk
0:02:01.6]} 29. Qe5+ {[%clk 0:01:36.2]} 29... Rf6 {[%clk 0:01:58]} 30. b4 {[%clk
0:01:26.1]} 30... Qa6 {[%clk 0:01:57.5]} 31. Ra5 {[%clk 0:01:18.6]} 31... Qc6
{[%clk 0:01:56.8]} 32. Qe4 {[%clk 0:01:12.2]} 32... Qc7 {[%clk 0:01:56.9]} 33.
Qd4 {[%clk 0:01:07.2]} 33... Qc6 {[%clk 0:01:56.5]} 34. Qe4 {[%clk 0:01:06.2]}
34... Qb6 {[%clk 0:01:56.5]} 35. Rd5 {[%clk 0:00:59]} 35... Kh7 {[%clk 0:01:48]}
36. Rd7 {[%clk 0:00:57.5]} 36... Kg7 {[%clk 0:01:45.4]} 37. a4 {[%clk
0:00:50.4]} 37... a6 {[%clk 0:01:43.7]} 38. a5 {[%clk 0:00:49.1]} 38... Qb5
{[%clk 0:01:41.9]} 39. Rd5 {[%clk 0:00:43]} 39... Qc6 {[%clk 0:01:39.2]} 40. Re5
{[%clk 0:00:40.5]} 40... Qd6 {[%clk 0:01:37]} 41. Re7 {[%clk 0:00:36.7]} 41...
Rf5 {[%clk 0:01:36.7]} 42. Rb7 {[%clk 0:00:31.9]} 42... Rg5+ {[%clk 0:01:34.7]}
43. Kh3 {[%clk 0:00:25.4]} 43... Re5 {[%clk 0:01:34.6]} 44. Qf4 {[%clk
0:00:21.7]} 44... Qe6+ {[%clk 0:01:31.7]} 45. Kg2 {[%clk 0:00:21.8]} 45... Rf5
{[%clk 0:01:23.7]} 46. Qd4+ {[%clk 0:00:21.6]} 46... Kh7 {[%clk 0:01:24.1]} 47.
Rb8 {[%clk 0:00:18.9]} 47... Rg5+ {[%clk 0:01:11.1]} 48. Kf1 {[%clk 0:00:19.4]}
48... f6 {[%clk 0:01:10]} 49. Qa7+ {[%clk 0:00:18.3]} 1-0

[Event "*** Titled Tuesday Blitz"]
[Site "Chess.com"]
[Date "2020.05.19"]
[Round "3"]
[White "Zhuu96"]
[Black "Roman_Ovetchkin"]
[Result "0-1"]
[WhiteElo "2852"]
[BlackElo "2633"]
[TimeControl "180+1"]
[EndTime "12:28:14 PDT"]
[Termination "Roman_Ovetchkin won by resignation"]

1. d4 {[%clk 0:02:53.8]} 1... Nf6 {[%clk 0:02:58.4]} 2. c4 {[%clk 0:02:52.8]}
2... g6 {[%clk 0:02:58.2]} 3. Nc3 {[%clk 0:02:51.5]} 3... Bg7 {[%clk 0:02:58]}
4. e4 {[%clk 0:02:51.9]} 4... d6 {[%clk 0:02:58.3]} 5. Be2 {[%clk 0:02:52.4]}
5... O-O {[%clk 0:02:57.6]} 6. Bg5 {[%clk 0:02:53]} 6... Na6 {[%clk 0:02:55.2]}
7. Qd2 {[%clk 0:02:50.5]} 7... c6 {[%clk 0:02:54.5]} 8. Nf3 {[%clk 0:02:42.4]}
8... e5 {[%clk 0:02:50.7]} 9. d5 {[%clk 0:02:31.8]} 9... Nc5 {[%clk 0:02:47.6]}
10. Qc2 {[%clk 0:02:22.3]} 10... a5 {[%clk 0:02:36.2]} 11. Rd1 {[%clk
0:02:02.4]} 11... Qc7 {[%clk 0:02:14.4]} 12. O-O {[%clk 0:02:00.3]} 12... Nh5
{[%clk 0:01:52.4]} 13. Be3 {[%clk 0:01:44.2]} 13... Nf4 {[%clk 0:01:43.7]} 14.
Bxc5 {[%clk 0:01:41.8]} 14... dxc5 {[%clk 0:01:43.4]} 15. d6 {[%clk 0:01:42.3]}
15... Qd8 {[%clk 0:01:36.5]} 16. Na4 {[%clk 0:01:39.8]} 16... Ne6 {[%clk
0:01:29.9]} 17. Qb3 {[%clk 0:01:34.1]} 17... Nd4 {[%clk 0:00:51.1]} 18. Nxd4
{[%clk 0:01:28.5]} 18... exd4 {[%clk 0:00:47.9]} 19. Nxc5 {[%clk 0:01:23.2]}
19... Qxd6 {[%clk 0:00:45.7]} 20. Nd3 {[%clk 0:01:23.3]} 20... a4 {[%clk
0:00:34.9]} 21. Qc2 {[%clk 0:01:22.3]} 21... c5 {[%clk 0:00:32.7]} 22. f4 {[%clk
0:01:21.8]} 22... b6 {[%clk 0:00:26.8]} 23. e5 {[%clk 0:01:19.5]} 23... Qd8
{[%clk 0:00:26]} 24. Bf3 {[%clk 0:01:19.6]} 24... Ra7 {[%clk 0:00:26.5]} 25. b4
{[%clk 0:01:18]} 25... axb3 {[%clk 0:00:24.9]} 26. axb3 {[%clk 0:01:17.9]} 26...
Bf5 {[%clk 0:00:23.8]} 27. g4 {[%clk 0:01:16.7]} 27... Bxd3 {[%clk 0:00:18.5]}
28. Rxd3 {[%clk 0:01:11.9]} 28... g5 {[%clk 0:00:17.9]} 29. Bd5 {[%clk
0:01:07.4]} 29... gxf4 {[%clk 0:00:17.1]} 30. Rh3 {[%clk 0:01:07.3]} 30... h6
{[%clk 0:00:16.2]} 31. Rxf4 {[%clk 0:01:05.7]} 31... Re7 {[%clk 0:00:15.2]} 32.
Qg6 {[%clk 0:00:59.3]} 32... Qxd5 {[%clk 0:00:08.1]} 33. Qxg7+ {[%clk
0:00:52.8]} 33... Kxg7 {[%clk 0:00:09]} 34. cxd5 {[%clk 0:00:52.3]} 34... Rxe5
{[%clk 0:00:09.4]} 35. Rf6 {[%clk 0:00:52.9]} 35... Kxf6 {[%clk 0:00:08.7]} 0-1

[Event "*** Titled Tuesday Blitz"]
[Site "Chess.com"]
[Date "2020.05.19"]
[Round "3"]
[White "Herracek"]
[Black "Dr-Bassem"]
[Result "0-1"]
[WhiteElo "2554"]
[BlackElo "2796"]
[TimeControl "180+1"]
[EndTime "12:28:14 PDT"]
[Termination "Dr-Bassem won by resignation"]

1. c4 {[%clk 0:03:00.9]} 1... f5 {[%clk 0:02:58.7]} 2. e4 {[%clk 0:03:00.4]}
2... fxe4 {[%clk 0:02:56.7]} 3. d3 {[%clk 0:03:00.6]} 3... Nf6 {[%clk
0:02:47.3]} 4. g4 {[%clk 0:02:59.9]} 4... g6 {[%clk 0:02:31.5]} 5. g5 {[%clk
0:02:58.2]} 5... Nh5 {[%clk 0:02:31.2]} 6. Nc3 {[%clk 0:02:58.1]} 6... exd3
{[%clk 0:02:29.6]} 7. Bxd3 {[%clk 0:02:57.7]} 7... Nc6 {[%clk 0:02:19.9]} 8.
Nge2 {[%clk 0:02:58.1]} 8... Bg7 {[%clk 0:01:28]} 9. Ng3 {[%clk 0:02:57.8]} 9...
Nxg3 {[%clk 0:01:24.1]} 10. hxg3 {[%clk 0:02:58.7]} 10... Ne5 {[%clk 0:01:24.1]}
11. Be4 {[%clk 0:02:48.3]} 11... d6 {[%clk 0:01:23.1]} 12. f4 {[%clk 0:02:45.3]}
12... Bg4 {[%clk 0:01:19.2]} 13. Qa4+ {[%clk 0:02:43]} 13... Bd7 {[%clk
0:01:15.5]} 14. Qc2 {[%clk 0:02:33.8]} 14... Nf7 {[%clk 0:01:08.4]} 15. Bxb7
{[%clk 0:02:26.1]} 15... Rb8 {[%clk 0:01:08.8]} 16. Be4 {[%clk 0:02:26]} 16...
c6 {[%clk 0:01:04.7]} 17. Be3 {[%clk 0:01:54.5]} 17... Qa5 {[%clk 0:01:04.2]}
18. Rc1 {[%clk 0:01:31.2]} 18... d5 {[%clk 0:00:57.2]} 19. cxd5 {[%clk
0:01:22.7]} 19... cxd5 {[%clk 0:00:58.1]} 20. Bxd5 {[%clk 0:00:42.6]} 20...
Bxc3+ {[%clk 0:00:57.3]} 21. Qxc3 {[%clk 0:00:42.8]} 21... Qxd5 {[%clk
0:00:57.8]} 22. O-O {[%clk 0:00:39.3]} 22... Rc8 {[%clk 0:00:47.9]} 23. Qg7
{[%clk 0:00:28.4]} 23... Bc6 {[%clk 0:00:41.7]} 24. Rxc6 {[%clk 0:00:21.4]}
24... Rxc6 {[%clk 0:00:42.6]} 25. Bxa7 {[%clk 0:00:18.5]} 25... Rc2 {[%clk
0:00:38.8]} 26. Bf2 {[%clk 0:00:17.9]} 26... Kd7 {[%clk 0:00:33.7]} 27. a4
{[%clk 0:00:18.1]} 27... Rb8 {[%clk 0:00:32.8]} 28. Rb1 {[%clk 0:00:15.7]} 28...
Rb3 {[%clk 0:00:30.9]} 29. Kf1 {[%clk 0:00:06.5]} 29... Qh1+ {[%clk 0:00:28.8]}
0-1

[Event "*** Titled Tuesday Blitz"]
[Site "Chess.com"]
[Date "2020.05.19"]
[Round "3"]
[White "Omk124"]
[Black "DenisQ"]
[Result "1-0"]
[WhiteElo "2381"]
[BlackElo "2543"]
[TimeControl "180+1"]
[EndTime "12:28:14 PDT"]
[Termination "Omk124 won by resignation"]

1. e4 {[%clk 0:03:00.9]} 1... c6 {[%clk 0:02:57.2]} 2. c4 {[%clk 0:03:00.3]}
2... d5 {[%clk 0:02:56.7]} 3. exd5 {[%clk 0:03:00.9]} 3... cxd5 {[%clk
0:02:57.6]} 4. cxd5 {[%clk 0:03:01.5]} 4... Nf6 {[%clk 0:02:57.1]} 5. Nc3 {[%clk
0:03:02.1]} 5... Nxd5 {[%clk 0:02:56.8]} 6. Nf3 {[%clk 0:03:02.6]} 6... Nc6
{[%clk 0:02:53.4]} 7. Bb5 {[%clk 0:03:02.3]} 7... e6 {[%clk 0:02:52.7]} 8. O-O
{[%clk 0:03:01.9]} 8... Be7 {[%clk 0:02:52.3]} 9. d4 {[%clk 0:03:02]} 9... O-O
{[%clk 0:02:51.9]} 10. Re1 {[%clk 0:03:01.2]} 10... Nf6 {[%clk 0:02:42.7]} 11.
Bd3 {[%clk 0:02:54.9]} 11... b6 {[%clk 0:02:39.2]} 12. Bg5 {[%clk 0:02:42.8]}
12... Bb7 {[%clk 0:02:37.3]} 13. Rc1 {[%clk 0:02:42.2]} 13... Rc8 {[%clk
0:02:35.3]} 14. Bb1 {[%clk 0:02:42]} 14... Re8 {[%clk 0:02:26]} 15. a3 {[%clk
0:02:40.5]} 15... Na5 {[%clk 0:01:53.9]} 16. Qd3 {[%clk 0:02:28.1]} 16... g6
{[%clk 0:01:52.5]} 17. Ne5 {[%clk 0:02:26.9]} 17... Nc6 {[%clk 0:01:47]} 18.
Rcd1 {[%clk 0:02:26.1]} 18... Nxe5 {[%clk 0:01:45.1]} 19. dxe5 {[%clk
0:02:25.5]} 19... Qxd3 {[%clk 0:01:44.1]} 20. Rxd3 {[%clk 0:02:24.7]} 20... Nd5
{[%clk 0:01:43.6]} 21. Bxe7 {[%clk 0:02:17.4]} 21... Rxe7 {[%clk 0:01:39.1]} 22.
Ne4 {[%clk 0:02:16.1]} 22... Rec7 {[%clk 0:01:25.3]} 23. Nd6 {[%clk 0:02:14]}
23... Rc1 {[%clk 0:01:24.5]} 24. Rdd1 {[%clk 0:02:09]} 24... Rxd1 {[%clk
0:01:23.8]} 25. Rxd1 {[%clk 0:02:09.9]} 25... Rc7 {[%clk 0:01:23.7]} 26. Nxb7
{[%clk 0:02:02.6]} 26... Rxb7 {[%clk 0:01:23.4]} 27. Be4 {[%clk 0:01:56.9]}
27... Rc7 {[%clk 0:01:07.9]} 28. g3 {[%clk 0:01:34.6]} 28... Rd7 {[%clk
0:00:58.3]} 29. Bxd5 {[%clk 0:01:17]} 29... exd5 {[%clk 0:00:53.2]} 30. f4
{[%clk 0:01:15.9]} 30... Kf8 {[%clk 0:00:53.2]} 31. Kf2 {[%clk 0:01:16.2]} 31...
Ke7 {[%clk 0:00:53.4]} 32. Ke3 {[%clk 0:01:16.5]} 32... Ke6 {[%clk 0:00:52.1]}
33. Rc1 {[%clk 0:01:16.8]} 33... d4+ {[%clk 0:00:41.4]} 34. Kd3 {[%clk
0:01:16.9]} 34... g5 {[%clk 0:00:29.4]} 35. Rc6+ {[%clk 0:01:10.4]} 35... Kd5
{[%clk 0:00:29.4]} 36. Rh6 {[%clk 0:01:06.8]} 36... gxf4 {[%clk 0:00:29.3]} 37.
gxf4 {[%clk 0:01:06.6]} 37... f5 {[%clk 0:00:24.1]} 38. Rf6 {[%clk 0:01:03.7]}
38... Rg7 {[%clk 0:00:18.2]} 39. b4 {[%clk 0:01:03.3]} 1-0

[Event "*** Titled Tuesday Blitz"]
[Site "Chess.com"]
[Date "2020.05.19"]
[Round "3"]
[White "szefru"]
[Black "marcodobrikov"]
[Result "0-1"]
[WhiteElo "2153"]
[BlackElo "2472"]
[TimeControl "180+1"]
[EndTime "12:28:14 PDT"]
[Termination "marcodobrikov won by resignation"]

1. e4 {[%clk 0:03:00.9]} 1... c5 {[%clk 0:02:30.7]} 2. Nf3 {[%clk 0:03:00]} 2...
d6 {[%clk 0:02:30.7]} 3. d4 {[%clk 0:02:59.3]} 3... cxd4 {[%clk 0:02:31.6]} 4.
Qxd4 {[%clk 0:02:59.8]} 4... Nf6 {[%clk 0:02:31.4]} 5. Nc3 {[%clk 0:02:57.2]}
5... a6 {[%clk 0:02:30.7]} 6. Bg5 {[%clk 0:02:56.4]} 6... Nc6 {[%clk 0:02:30.6]}
7. Qe3 {[%clk 0:02:55]} 7... e6 {[%clk 0:02:25.9]} 8. O-O-O {[%clk 0:02:54.4]}
8... Qa5 {[%clk 0:02:23.5]} 9. Kb1 {[%clk 0:02:52]} 9... Be7 {[%clk 0:02:22.1]}
10. h4 {[%clk 0:02:49.4]} 10... h6 {[%clk 0:02:20.3]} 11. Bf4 {[%clk 0:02:45.4]}
11... e5 {[%clk 0:02:19.2]} 12. Bh2 {[%clk 0:02:44.5]} 12... Be6 {[%clk
0:02:18.9]} 13. Nd2 {[%clk 0:02:33]} 13... b5 {[%clk 0:02:11.9]} 14. Nb3 {[%clk
0:02:27]} 14... Qc7 {[%clk 0:02:05]} 15. f3 {[%clk 0:02:21.7]} 15... O-O {[%clk
0:02:04.6]} 16. g4 {[%clk 0:02:15.6]} 16... Qa7 {[%clk 0:01:59]} 17. Qd2 {[%clk
0:02:08]} 17... Bxb3 {[%clk 0:01:31.2]} 18. cxb3 {[%clk 0:01:57]} 18... Nd4
{[%clk 0:01:30.9]} 19. Bg2 {[%clk 0:01:29.2]} 19... b4 {[%clk 0:01:27.1]} 20.
Ne2 {[%clk 0:01:24.5]} 20... Nxe2 {[%clk 0:01:26.5]} 21. Qxe2 {[%clk 0:01:25.4]}
21... a5 {[%clk 0:01:24.7]} 22. Bg1 {[%clk 0:01:24.9]} 22... Qd7 {[%clk
0:01:18.5]} 23. g5 {[%clk 0:01:17.6]} 23... hxg5 {[%clk 0:01:18.2]} 24. hxg5
{[%clk 0:01:17.1]} 24... Nh7 {[%clk 0:01:19.1]} 25. Bh3 {[%clk 0:00:59.8]} 25...
Qc6 {[%clk 0:01:11.6]} 26. g6 {[%clk 0:00:45.6]} 26... Ng5 {[%clk 0:01:11.4]}
27. Bf5 {[%clk 0:00:37.9]} 27... fxg6 {[%clk 0:01:07.2]} 28. Bxg6 {[%clk
0:00:34.4]} 28... Rxf3 {[%clk 0:01:08.1]} 29. Be3 {[%clk 0:00:20.6]} 29... Rxe3
{[%clk 0:00:58.3]} 30. Qxe3 {[%clk 0:00:19.8]} 30... d5 {[%clk 0:00:58.6]} 31.
exd5 {[%clk 0:00:17.5]} 31... Qxg6+ {[%clk 0:00:58.2]} 32. Qd3 {[%clk
0:00:16.1]} 32... Qxd3+ {[%clk 0:00:55.4]} 33. Rxd3 {[%clk 0:00:17]} 33... Rd8
{[%clk 0:00:55.4]} 34. Rhd1 {[%clk 0:00:16.2]} 34... Bd6 {[%clk 0:00:54.7]} 35.
Rc1 {[%clk 0:00:14.9]} 35... e4 {[%clk 0:00:54.4]} 36. Rdd1 {[%clk 0:00:15.2]}
36... Nf3 {[%clk 0:00:53.1]} 37. Rc6 {[%clk 0:00:14.8]} 37... e3 {[%clk
0:00:52.4]} 38. Kc2 {[%clk 0:00:14.1]} 38... e2 {[%clk 0:00:52]} 0-1